fUST/lending_fUST_20260417
["ID","MTS","AMOUNT","RATE_DAILY","PERIOD"]
[420637508,1776393039628,-504.36047723,8.219e-05,2]
[420637509,1776393039638,-543.47470204,8.219e-05,2]
[420637510,1776393039648,-512.01877815,8.219e-05,2]
[420637511,1776393039658,-500.0,8.219e-05,2]
[420637512,1776393039669,-503.8599828,8.219e-05,2]
[420637513,1776393039679,-502.4655005,8.219e-05,2]
[420637514,1776393039689,-879.89,8.219e-05,2]
[420637515,1776393039698,-503.82159495,8.219e-05,2]
[420637516,1776393039708,-504.07957267,8.219e-05,2]
[420637517,1776393039718,-500.0,8.219e-05,2]
[420637518,1776393039727,-2133.34,8.219e-05,2]
[420637519,1776393039737,-504.82146544,8.219e-05,2]
[420637520,1776393039747,-508.15407321,8.219e-05,2]
[420637521,1776393039757,-501.28831411,8.219e-05,2]
[420637522,1776393039768,-503.75421062,8.219e-05,2]
[420637523,1776393039778,-509.84176256,8.219e-05,2]
[420637524,1776393039790,-524.3,8.219e-05,2]
[420637525,1776393039801,-502.72732184,8.219e-05,2]
[420637526,1776393039811,-907.81,8.219e-05,2]
[420637527,1776393039822,-503.92866297,8.219e-05,2]
[420637528,1776393039834,-500.0,8.219e-05,2]
[420637529,1776393039845,-503.04434566,8.219e-05,2]
[420637530,1776393039856,-502.53934949,8.219e-05,2]
[420637531,1776393039866,-500.56751864,8.219e-05,2]
[420637532,1776393039878,-504.07238051,8.219e-05,2]
[420637533,1776393039888,-501.73281495,8.219e-05,2]
[420637534,1776393039897,-502.1174721,8.219e-05,2]
[420637535,1776393039907,-502.09884298,8.219e-05,2]
[420637536,1776393039917,-502.84939513,8.219e-05,2]
[420637537,1776393039928,-171.726963,8.219e-05,2]
[420637538,1776393039938,-502.01877189,8.219e-05,2]
[420637539,1776393039948,-506.20002897,8.219e-05,2]
[420637540,1776393039958,-506.61895458,8.219e-05,2]
[420637541,1776393039969,-1293.01,8.219e-05,2]
[420637542,1776393039980,-500.68942035,8.219e-05,2]
[420637543,1776393039990,-552.22645261,8.219e-05,2]
[420637544,1776393040000,-505.46356439,8.219e-05,2]
[420637545,1776393040010,-504.13762414,8.219e-05,2]
[420637546,1776393040021,-506.91435813,8.219e-05,2]
[420637547,1776393040032,-507.09536026,8.219e-05,2]
[420637548,1776393040042,-500.0,8.219e-05,2]
[420637549,1776393040052,-500.50892254,8.219e-05,2]
[420637550,1776393040064,-506.70088506,8.219e-05,2]
[420637551,1776393040074,-507.58701091,8.219e-05,2]
[420637552,1776393040084,-501.30703456,8.219e-05,2]
[420637553,1776393040094,-1032.96,8.219e-05,2]
[420637554,1776393040104,-505.28801653,8.219e-05,2]
[420637555,1776393040114,-500.0,8.219e-05,2]
[420637556,1776393040123,-531.47671456,8.219e-05,2]
[420637557,1776393040134,-509.15250627,8.219e-05,2]
[420637558,1776393040145,-1561.51,8.219e-05,2]
[420637559,1776393040155,-504.27351594,8.219e-05,2]
[420637560,1776393040169,-509.03881696,8.219e-05,2]
[420637561,1776393040181,-500.0,8.219e-05,2]
[420637563,1776393040192,-505.8145101,8.219e-05,2]
[420637565,1776393040202,-1467.69,8.219e-05,2]
[420637566,1776393040212,-500.0,8.219e-05,2]
[420637567,1776393040221,-541.85869686,8.219e-05,2]
[420637568,1776393040231,-1063.88,8.219e-05,2]
[420637569,1776393040241,-508.76977115,8.219e-05,2]
[420637570,1776393040251,-4738.17,8.219e-05,2]
[420637571,1776393040261,-501.19777093,8.219e-05,2]
[420637572,1776393040271,-500.0,8.219e-05,2]
[420637573,1776393040281,-685.81,8.219e-05,2]
[420637574,1776393040291,-674.87,8.219e-05,2]
[420637575,1776393040301,-500.80525379,8.219e-05,2]
[420637576,1776393040311,-1183.98,8.219e-05,2]
[420637577,1776393040321,-1414.58,8.219e-05,2]
[420637578,1776393040331,-500.0,8.219e-05,2]
[420637579,1776393040340,-1841.58,8.219e-05,2]
[420637580,1776393040350,-501.98394143,8.219e-05,2]
[420637581,1776393040360,-511.75309199,8.219e-05,2]
[420637582,1776393040370,-500.0,8.219e-05,2]
[420637583,1776393040380,-1564.46,8.219e-05,2]
[420637584,1776393040390,-501.27472258,8.219e-05,2]
[420637585,1776393040400,-504.97001903,8.219e-05,2]
[420637586,1776393040410,-3842.39,8.219e-05,2]
[420637587,1776393040422,-501.19853113,8.219e-05,2]
[420637588,1776393040432,-500.0,8.219e-05,2]
[420637589,1776393040442,-500.0,8.219e-05,2]
[420637590,1776393040453,-515.74631836,8.219e-05,2]
[420637591,1776393040463,-600.99352941,8.219e-05,2]
[420637592,1776393040473,-500.56468903,8.219e-05,2]
[420637593,1776393040484,-501.40703144,8.219e-05,2]
[420637594,1776393040498,-500.66742548,8.219e-05,2]
[420637595,1776393040508,-1533.39,8.219e-05,2]
[420637596,1776393040518,-512.99121076,8.219e-05,2]
[420637597,1776393040529,-500.0,8.219e-05,2]
[420637598,1776393040539,-517.54174197,8.219e-05,2]
[420637599,1776393040549,-507.78323174,8.219e-05,2]
[420637600,1776393040559,-3818.7,8.219e-05,2]
[420637601,1776393040570,-500.0,8.219e-05,2]
[420637602,1776393040581,-513.16220023,8.219e-05,2]
[420637603,1776393040591,-564.99307555,8.219e-05,2]
[420637604,1776393040602,-506.29058999,8.219e-05,2]
[420637605,1776393040612,-500.29333612,8.219e-05,2]
[420637606,1776393040622,-501.53274409,8.219e-05,2]
[420637607,1776393040632,-533.04628151,8.219e-05,2]
[420637608,1776393040643,-501.11061722,8.219e-05,2]
[420637609,1776393040653,-502.21212134,8.219e-05,2]
[420637610,1776393040663,-504.32703012,8.219e-05,2]
[420637611,1776393040673,-665.36,8.219e-05,2]
[420637612,1776393040684,-504.93837669,8.219e-05,2]
[420637613,1776393040694,-508.53379331,8.219e-05,2]
[420637615,1776393040704,-602.19,8.219e-05,2]
[420637616,1776393040714,-500.0,8.219e-05,2]
[420637618,1776393040724,-1741.93,8.219e-05,2]
[420637619,1776393040734,-506.87660771,8.219e-05,2]
[420637620,1776393040744,-842.53,8.219e-05,2]
[420637621,1776393040756,-500.363387,8.219e-05,2]
[420637622,1776393040766,-504.67977944,8.219e-05,2]
[420637623,1776393040777,-501.09385429,8.219e-05,2]
[420637625,1776393040789,-503.63709076,8.219e-05,2]
[420637626,1776393040799,-2544.26,8.219e-05,2]
[420637627,1776393040809,-500.0,8.219e-05,2]
[420637628,1776393040819,-519.01879451,8.219e-05,2]
[420637629,1776393040829,-517.6703139,8.219e-05,2]
[420637630,1776393040839,-648.06451511,8.219e-05,2]
[420637631,1776393040849,-501.69779877,8.219e-05,2]
[420637632,1776393040859,-511.1157842,8.219e-05,2]
[420637633,1776393040869,-500.0,8.219e-05,2]
[420637634,1776393040879,-500.0,8.219e-05,2]
[420637635,1776393040890,-500.0,8.219e-05,2]
[420637636,1776393040900,-505.27084226,8.219e-05,2]
[420637637,1776393040910,-501.02785392,8.219e-05,2]
[420637638,1776393040920,-508.54808337,8.219e-05,2]
[420637639,1776393040930,-500.68369368,8.219e-05,2]
[420637640,1776393040940,-505.40831744,8.219e-05,2]
[420637641,1776393040951,-518.12114881,8.219e-05,2]
[420637642,1776393040961,-502.09266921,8.219e-05,2]
[420637643,1776393040971,-1322.24,8.219e-05,2]
[420637644,1776393040981,-510.01759981,8.219e-05,2]
[420637645,1776393040991,-1612.42,8.219e-05,2]
[420637646,1776393041001,-501.94637577,8.219e-05,2]
[420637647,1776393041010,-3242.72,8.219e-05,2]
[420637648,1776393041020,-502.05974849,8.219e-05,2]
[420637649,1776393041030,-494.305029,8.219e-05,2]
[420637650,1776393041041,-501.34618127,8.219e-05,2]
[420637651,1776393041051,-500.54228005,8.219e-05,2]
[420637652,1776393041061,-505.09972305,8.219e-05,2]
[420637653,1776393041071,-500.29556369,8.219e-05,2]
[420637654,1776393041081,-504.70938128,8.219e-05,2]
[420637655,1776393041091,-502.11333901,8.219e-05,2]
[420637656,1776393041101,-500.0,8.219e-05,2]
[420637657,1776393041111,-1980.96,8.219e-05,2]
[420637658,1776393041120,-502.47241363,8.219e-05,2]
[420637659,1776393041130,-500.0,8.219e-05,2]
[420637661,1776393041140,-502.44962499,8.219e-05,2]
[420637663,1776393041150,-511.44027482,8.219e-05,2]
[420637665,1776393041159,-518.46590788,8.219e-05,2]
[420637667,1776393041169,-501.69420057,8.219e-05,2]
[420637668,1776393041178,-504.80326995,8.219e-05,2]
[420637669,1776393041188,-3735.11,8.219e-05,2]
[420637670,1776393041198,-501.04566001,8.219e-05,2]
[420637671,1776393041208,-3274.39,8.219e-05,2]
[420637672,1776393041218,-505.7830808,8.219e-05,2]
[420637673,1776393041228,-500.37985042,8.219e-05,2]
[420637674,1776393041238,-500.0,8.219e-05,2]
[420637675,1776393041247,-500.6103795,8.219e-05,2]
[420637676,1776393041257,-502.54322796,8.219e-05,2]
[420637677,1776393041267,-502.43582495,8.219e-05,2]
[420637678,1776393041277,-500.0,8.219e-05,2]
[420637679,1776393041287,-1553.18,8.219e-05,2]
[420637680,1776393041298,-504.38540666,8.219e-05,2]
[420637681,1776393041308,-2606.27,8.219e-05,2]
[420637682,1776393041318,-1277.01,8.219e-05,2]
[420637683,1776393041328,-4872.65,8.219e-05,2]
[420637684,1776393041338,-500.36700233,8.219e-05,2]
[420637685,1776393041348,-504.1207239,8.219e-05,2]
[420637686,1776393041358,-500.0,8.219e-05,2]
[420637687,1776393041369,-509.90494728,8.219e-05,2]
[420637688,1776393041378,-500.0,8.219e-05,2]
[420637689,1776393041388,-500.683079,8.219e-05,2]
[420637690,1776393041398,-1620.72,8.219e-05,2]
[420637691,1776393041408,-500.0,8.219e-05,2]
[420637692,1776393041418,-502.59996558,8.219e-05,2]
[420637693,1776393041428,-500.0,8.219e-05,2]
[420637694,1776393041437,-17804.91,8.219e-05,2]
[420637695,1776393041447,-517.82124266,8.219e-05,2]
[420637696,1776393041456,-505.31126849,8.219e-05,2]
[420637697,1776393041466,-502.14544619,8.219e-05,2]
[420637699,1776393041476,-517.64,8.219e-05,2]
[420637701,1776393041486,-3652.11,8.219e-05,2]
[420637703,1776393041497,-500.0,8.219e-05,2]
[420637705,1776393041507,-5567.24,8.219e-05,2]
[420637707,1776393041517,-563.6,8.219e-05,2]
[420637709,1776393041527,-500.91163001,8.219e-05,2]
[420637711,1776393041537,-502.23633967,8.219e-05,2]
[420637713,1776393041547,-503.47269652,8.219e-05,2]
[420637715,1776393041556,-2136.6,8.219e-05,2]
[420637717,1776393041566,-804.62,8.219e-05,2]
[420637719,1776393041576,-504.79009815,8.219e-05,2]
[420637721,1776393041585,-501.00811128,8.219e-05,2]
[420637723,1776393041595,-500.50756711,8.219e-05,2]
[420637725,1776393041605,-10414.08,8.219e-05,2]
[420637727,1776393041615,-500.0,8.219e-05,2]
[420637728,1776393041624,-2378.92,8.219e-05,2]
[420637729,1776393041635,-871.5,8.219e-05,2]
[420637730,1776393041645,-500.86149681,8.219e-05,2]
[420637731,1776393041655,-500.0,8.219e-05,2]
[420637732,1776393041665,-510.69371079,8.219e-05,2]
[420637733,1776393041677,-501.57677577,8.219e-05,2]
[420637735,1776393041687,-513.57386151,8.219e-05,2]
[420637736,1776393041698,-502.15355635,8.219e-05,2]
[420637737,1776393041708,-500.0,8.219e-05,2]
[420637738,1776393041719,-500.0,8.219e-05,2]
[420637739,1776393041729,-4715.7,8.219e-05,2]
[420637740,1776393041739,-960.77,8.219e-05,2]
[420637741,1776393041749,-505.00876118,8.219e-05,2]
[420637742,1776393041759,-502.62481412,8.219e-05,2]
[420637743,1776393041768,-504.34917574,8.219e-05,2]
[420637744,1776393041778,-500.0,8.219e-05,2]
[420637745,1776393041788,-500.30587778,8.219e-05,2]
[420637746,1776393041798,-518.10024306,8.219e-05,2]
[420637747,1776393041808,-504.81755397,8.219e-05,2]
[420637748,1776393041818,-502.57660068,8.219e-05,2]
[420637749,1776393041828,-500.0,8.219e-05,2]
[420637750,1776393041837,-419.11937398,8.219e-05,2]
[420637751,1776393041847,-510.75012094,8.219e-05,2]
[420637752,1776393041857,-5147.4,8.219e-05,2]
[420637753,1776393041867,-500.0,8.219e-05,2]
[420637754,1776393041876,-500.64064979,8.219e-05,2]
[420637755,1776393041886,-518.29409186,8.219e-05,2]
[420637756,1776393041896,-517.28792997,8.219e-05,2]
[420637757,1776393041906,-502.14814244,8.219e-05,2]
[420637758,1776393041916,-500.0,8.219e-05,2]
[420637759,1776393041926,-531.49,8.219e-05,2]
[420637760,1776393041936,-505.37783582,8.219e-05,2]
[420637761,1776393041947,-506.32877504,8.219e-05,2]
[420637762,1776393041958,-629.34008279,8.219e-05,2]
[420637763,1776393041968,-500.0,8.219e-05,2]
[420637764,1776393041979,-502.79286201,8.219e-05,2]
[420637765,1776393041990,-508.92367257,8.219e-05,2]
[420637766,1776393042002,-500.0,8.219e-05,2]
[420637767,1776393042012,-503.34881505,8.219e-05,2]
[420637768,1776393042021,-373597.06089471,8.33e-05,2]
[420637769,1776393042050,-500.0,8.219e-05,2]
[420637770,1776393042061,-812.0,8.33e-05,2]
[420637787,1776393043361,-500.0,8.219e-05,2]
[420637788,1776393043371,-504.14417867,8.219e-05,2]
[420637789,1776393043380,-507.95073645,8.219e-05,2]
[420637790,1776393043390,-501.75740402,8.219e-05,2]
[420637791,1776393043400,-509.51502614,8.219e-05,2]
[420637792,1776393043409,-507.27962825,8.219e-05,2]
[420637793,1776393043419,-506.90504268,8.219e-05,2]
[420637794,1776393043429,-507.52339482,8.219e-05,2]
[420637795,1776393043438,-500.0,8.219e-05,2]
[420637796,1776393043448,-208.0370342,8.33e-05,2]
[420637797,1776393043460,-2285.52888075,8.33e-05,2]
[420637798,1776393043472,-92229.43068985,8.33e-05,2]
[420637799,1776393043492,-500.0,8.219e-05,2]
[420637800,1776393043502,-1357.17595697,8.33e-05,2]
[420637801,1776393043514,-2969.19821707,8.33e-05,2]
[420637802,1776393043526,-1050.59287838,8.33e-05,2]
[420637803,1776393043538,-883.78789779,8.33e-05,2]
[420637804,1776393043549,-1041.66666667,8.33e-05,2]
[420637805,1776393043561,-1801.41093038,8.33e-05,2]
[420637806,1776393046651,-515.7299941,8.219e-05,2]
[420637807,1776393046661,-4563.12,8.219e-05,2]
[420637808,1776393046671,-16684.62607171,8.33e-05,2]
[420637809,1776393046683,-1257.87188007,8.33e-05,2]
[420637810,1776393046695,-346.82645594,8.33e-05,2]
[420637811,1776393046827,-7822.12422429,8.33e-05,2]
[420637812,1776393046839,-17128.1951221,8.33e-05,2]
[420637873,1776393315621,300.0,7.85e-05,30]
[420637878,1776393930140,746.0,0.00024657,120]
[420637884,1776394072603,860.52686299,0.00016697,120]
[420637885,1776394073098,860.52686299,0.00016742,120]
[420637886,1776394073633,860.52686299,0.00016787,120]
[420637935,1776394189542,549.62262162,0.00024658,120]
[420638013,1776394238996,-1630.27818127,6.19e-05,2]
[420638014,1776394239007,-509.0,6.253e-05,2]
[420638015,1776394239016,-258.83785398,6.278e-05,2]
[420638016,1776394239026,-1200.0,6.302e-05,2]
[420638017,1776394239035,-4726.6135438,6.303e-05,2]
[420638018,1776394239044,-300.0,6.402e-05,2]
[420638019,1776394239054,-9123.16089172,6.403e-05,2]
[420638020,1776394239063,-211.70478522,6.477e-05,2]
[420638021,1776394239073,-200.0,6.575e-05,2]
[420638022,1776394239083,-1115.82,6.575e-05,2]
[420638023,1776394239093,-151.0,7.613e-05,2]
[420638024,1776394239103,-160.0,7.85e-05,2]
[420638025,1776394239112,-157.01388965,8.001e-05,2]
[420638026,1776394239121,-500.0,8.001e-05,2]
[420638027,1776394239131,-50000.0,8.002e-05,2]
[420638028,1776394239140,-9903.43575175,8.002e-05,2]
[420638029,1776394239150,-2150.738,8.214e-05,2]
[420638030,1776394239159,-445.202766,8.214e-05,2]
[420638031,1776394239169,-155.0,8.218e-05,2]
[420638032,1776394239178,-500.0,8.218e-05,2]
[420638033,1776394239188,-500.0,8.218e-05,2]
[420638034,1776394239198,-500.0,8.218e-05,2]
[420638035,1776394239208,-500.0,8.218e-05,2]
[420638036,1776394239218,-500.0,8.218e-05,2]
[420638037,1776394239227,-372.50306034,8.218e-05,2]
[420638038,1776394239236,-500.0,8.218e-05,2]
[420638039,1776394239246,-500.0,8.218e-05,2]
[420638040,1776394239255,-500.0,8.218e-05,2]
[420638041,1776394239264,-500.0,8.218e-05,2]
[420638042,1776394239274,-500.0,8.218e-05,2]
[420638043,1776394239283,-509.87337631,8.219e-05,2]
[420638044,1776394239293,-500.64336492,8.219e-05,2]
[420638045,1776394239303,-164.110659,8.219e-05,2]
[420638046,1776394239312,-1207.1156,8.219e-05,2]
[420638047,1776394239322,-500.0,8.219e-05,2]
[420638048,1776394239331,-500.0,8.219e-05,2]
[420638049,1776394239340,-500.0,8.219e-05,2]
[420638050,1776394239350,-500.0,8.219e-05,2]
[420638051,1776394239360,-500.0,8.219e-05,2]
[420638052,1776394239370,-500.0,8.219e-05,2]
[420638053,1776394239379,-500.0,8.219e-05,2]
[420638054,1776394239389,-500.0,8.219e-05,2]
[420638055,1776394239399,-374.55842453,8.219e-05,2]
[420638056,1776394239408,-500.0,8.219e-05,2]
[420638057,1776394239418,-500.0,8.219e-05,2]
[420638058,1776394239427,-500.0,8.219e-05,2]
[420638059,1776394239437,-239.63840444,8.219e-05,2]
[420638060,1776394239447,-500.0,8.219e-05,2]
[420638061,1776394239456,-500.0,8.219e-05,2]
[420638062,1776394239466,-500.0,8.219e-05,2]
[420638063,1776394239475,-500.0,8.219e-05,2]
[420638064,1776394239484,-500.0,8.219e-05,2]
[420638065,1776394239494,-500.0,8.219e-05,2]
[420638066,1776394239504,-500.0,8.219e-05,2]
[420638067,1776394239515,-500.0,8.219e-05,2]
[420638068,1776394239524,-486.45687172,8.219e-05,2]
[420638069,1776394239533,-500.0,8.219e-05,2]
[420638070,1776394239543,-500.0,8.219e-05,2]
[420638071,1776394239553,-500.0,8.219e-05,2]
[420638072,1776394239563,-500.0,8.219e-05,2]
[420638073,1776394239572,-500.0,8.219e-05,2]
[420638074,1776394239582,-500.0,8.219e-05,2]
[420638075,1776394239592,-500.0,8.219e-05,2]
[420638076,1776394239601,-500.0,8.219e-05,2]
[420638077,1776394239611,-500.0,8.219e-05,2]
[420638078,1776394239620,-500.0,8.219e-05,2]
[420638079,1776394239630,-500.0,8.219e-05,2]
[420638080,1776394239640,-500.0,8.219e-05,2]
[420638081,1776394239649,-500.0,8.219e-05,2]
[420638082,1776394239658,-500.0,8.219e-05,2]
[420638083,1776394239668,-500.0,8.219e-05,2]
[420638084,1776394239677,-500.0,8.219e-05,2]
[420638085,1776394239687,-500.0,8.219e-05,2]
[420638086,1776394239697,-500.0,8.219e-05,2]
[420638087,1776394239706,-500.0,8.219e-05,2]
[420638088,1776394239716,-500.0,8.219e-05,2]
[420638089,1776394239725,-500.0,8.219e-05,2]
[420638090,1776394239735,-500.0,8.219e-05,2]
[420638091,1776394239744,-500.0,8.219e-05,2]
[420638092,1776394239754,-500.0,8.219e-05,2]
[420638093,1776394239764,-500.0,8.219e-05,2]
[420638094,1776394239774,-500.0,8.219e-05,2]
[420638095,1776394239784,-500.0,8.219e-05,2]
[420638096,1776394239794,-153.93773736,8.219e-05,2]
[420638097,1776394239805,-500.0,8.219e-05,2]
[420638098,1776394239814,-500.0,8.219e-05,2]
[420638099,1776394239824,-500.0,8.219e-05,2]
[420638100,1776394239833,-165.27600807,8.219e-05,2]
[420638101,1776394239843,-500.0,8.219e-05,2]
[420638102,1776394239852,-500.0,8.219e-05,2]
[420638103,1776394239862,-500.0,8.219e-05,2]
[420638104,1776394239871,-500.0,8.219e-05,2]
[420638105,1776394239881,-500.0,8.219e-05,2]
[420638106,1776394239890,-500.0,8.219e-05,2]
[420638107,1776394239899,-500.0,8.219e-05,2]
[420638108,1776394239909,-500.0,8.219e-05,2]
[420638109,1776394239918,-347.21256355,8.219e-05,2]
[420638110,1776394239928,-500.0,8.219e-05,2]
[420638111,1776394239938,-500.0,8.219e-05,2]
[420638112,1776394239947,-500.0,8.219e-05,2]
[420638113,1776394239956,-592.80105879,8.219e-05,2]
[420638114,1776394239966,-494.55051029,8.219e-05,2]
[420638115,1776394239975,-252.12185467,8.219e-05,2]
[420638116,1776394239984,-500.0,8.219e-05,2]
[420638117,1776394239994,-500.0,8.219e-05,2]
[420638118,1776394240003,-869.98,8.219e-05,2]
[420638119,1776394240012,-500.0,8.219e-05,2]
[420638120,1776394240021,-315.75988861,8.219e-05,2]
[420638121,1776394240031,-453.76028308,8.219e-05,2]
[420638122,1776394240041,-500.0,8.219e-05,2]
[420638123,1776394240050,-500.0,8.219e-05,2]
[420638124,1776394240059,-500.0,8.219e-05,2]
[420638125,1776394240069,-500.0,8.219e-05,2]
[420638126,1776394240078,-500.0,8.219e-05,2]
[420638127,1776394240088,-500.0,8.219e-05,2]
[420638128,1776394240097,-500.0,8.219e-05,2]
[420638129,1776394240107,-500.0,8.219e-05,2]
[420638130,1776394240116,-500.0,8.219e-05,2]
[420638131,1776394240126,-500.0,8.219e-05,2]
[420638132,1776394240135,-500.0,8.219e-05,2]
[420638133,1776394240144,-500.0,8.219e-05,2]
[420638134,1776394240154,-500.0,8.219e-05,2]
[420638135,1776394240163,-500.0,8.219e-05,2]
[420638136,1776394240172,-500.0,8.219e-05,2]
[420638137,1776394240182,-500.0,8.219e-05,2]
[420638138,1776394240191,-500.0,8.219e-05,2]
[420638139,1776394240201,-500.0,8.219e-05,2]
[420638140,1776394240210,-500.0,8.219e-05,2]
[420638141,1776394240220,-500.0,8.219e-05,2]
[420638142,1776394240229,-493.8411768,8.219e-05,2]
[420638143,1776394240238,-989.92,8.219e-05,2]
[420638144,1776394240247,-500.0,8.219e-05,2]
[420638145,1776394240257,-920.74,8.219e-05,2]
[420638146,1776394240266,-500.0,8.219e-05,2]
[420638147,1776394240276,-528.21,8.219e-05,2]
[420638148,1776394240287,-500.0,8.219e-05,2]
[420638149,1776394240296,-544.17,8.219e-05,2]
[420638150,1776394240305,-500.0,8.219e-05,2]
[420638152,1776394240315,-500.0,8.219e-05,2]
[420638153,1776394240324,-500.0,8.219e-05,2]
[420638154,1776394240333,-249.82654479,8.219e-05,2]
[420638155,1776394240342,-500.0,8.219e-05,2]
[420638156,1776394240352,-500.0,8.219e-05,2]
[420638157,1776394240361,-507.83955478,8.219e-05,2]
[420638158,1776394240371,-500.0,8.219e-05,2]
[420638159,1776394240380,-500.0,8.219e-05,2]
[420638160,1776394240389,-500.0,8.219e-05,2]
[420638161,1776394240398,-500.0,8.219e-05,2]
[420638162,1776394240408,-500.0,8.219e-05,2]
[420638163,1776394240416,-500.0,8.219e-05,2]
[420638164,1776394240426,-560.10407389,8.219e-05,2]
[420638165,1776394240435,-501.13966957,8.219e-05,2]
[420638166,1776394240445,-502.89649368,8.219e-05,2]
[420638167,1776394240454,-198.77,8.219e-05,2]
[420638168,1776394240463,-500.0,8.219e-05,2]
[420638169,1776394240473,-657.23,8.219e-05,2]
[420638170,1776394240482,-500.0,8.219e-05,2]
[420638171,1776394240491,-533.36462162,8.219e-05,2]
[420638172,1776394240500,-500.0,8.219e-05,2]
[420638173,1776394240511,-223.53905926,8.219e-05,2]
[420638174,1776394240520,-500.0,8.219e-05,2]
[420638175,1776394240529,-500.0,8.219e-05,2]
[420638176,1776394240539,-500.0,8.219e-05,2]
[420638177,1776394240548,-500.0,8.219e-05,2]
[420638178,1776394240557,-500.0,8.219e-05,2]
[420638179,1776394240566,-426.22,8.219e-05,2]
[420638180,1776394240576,-500.0,8.219e-05,2]
[420638181,1776394240585,-500.0,8.219e-05,2]
[420638182,1776394240594,-500.0,8.219e-05,2]
[420638183,1776394240603,-500.0,8.219e-05,2]
[420638184,1776394240613,-500.0,8.219e-05,2]
[420638185,1776394240622,-500.0,8.219e-05,2]
[420638186,1776394240631,-633.57952372,8.219e-05,2]
[420638187,1776394240640,-511.74106932,8.219e-05,2]
[420638188,1776394240649,-500.0,8.219e-05,2]
[420638189,1776394240659,-341.381898,8.219e-05,2]
[420638190,1776394240668,-500.0,8.219e-05,2]
[420638191,1776394240678,-509.51909556,8.219e-05,2]
[420638192,1776394240687,-500.0,8.219e-05,2]
[420638193,1776394240696,-502.47334802,8.219e-05,2]
[420638194,1776394240706,-507.26152925,8.219e-05,2]
[420638195,1776394240715,-500.0,8.219e-05,2]
[420638196,1776394240724,-504.55231326,8.219e-05,2]
[420638197,1776394240734,-513.94760435,8.219e-05,2]
[420638198,1776394240743,-578.25209209,8.219e-05,2]
[420638199,1776394240753,-500.0,8.219e-05,2]
[420638200,1776394240762,-502.60154495,8.219e-05,2]
[420638201,1776394240771,-504.31811382,8.219e-05,2]
[420638202,1776394240781,-500.0,8.219e-05,2]
[420638203,1776394240790,-500.0,8.219e-05,2]
[420638204,1776394240800,-500.0,8.219e-05,2]
[420638205,1776394240809,-501.52541666,8.219e-05,2]
[420638206,1776394240818,-500.0,8.219e-05,2]
[420638207,1776394240827,-500.0,8.219e-05,2]
[420638208,1776394240836,-500.0,8.219e-05,2]
[420638209,1776394240846,-502.14436787,8.219e-05,2]
[420638210,1776394240855,-501.65675072,8.219e-05,2]
[420638211,1776394240864,-529.80300944,8.219e-05,2]
[420638212,1776394240873,-505.90254103,8.219e-05,2]
[420638213,1776394240883,-500.0,8.219e-05,2]
[420638214,1776394240892,-501.25292815,8.219e-05,2]
[420638215,1776394240901,-500.0,8.219e-05,2]
[420638216,1776394240911,-414.98560966,8.219e-05,2]
[420638217,1776394240920,-500.0,8.219e-05,2]
[420638218,1776394240929,-500.0,8.219e-05,2]
[420638219,1776394240939,-500.0,8.219e-05,2]
[420638227,1776394241118,-500.0,8.219e-05,2]
[420638228,1776394241130,-500.0,8.219e-05,2]
[420638229,1776394241139,-704.23,8.219e-05,2]
[420638230,1776394241148,-1869.56,8.219e-05,2]
[420638231,1776394241158,-532.5263192,8.219e-05,2]
[420638232,1776394241167,-500.0,8.219e-05,2]
[420638233,1776394241176,-646.85317312,8.219e-05,2]
[420638234,1776394241186,-500.0,8.219e-05,2]
[420638235,1776394241195,-500.0,8.219e-05,2]
[420638236,1776394241206,-245.49,8.219e-05,2]
[420638237,1776394241216,-500.0,8.219e-05,2]
[420638238,1776394241225,-505.14062707,8.219e-05,2]
[420638239,1776394241234,-500.0,8.219e-05,2]
[420638240,1776394241244,-500.0,8.219e-05,2]
[420638241,1776394241253,-500.0,8.219e-05,2]
[420638242,1776394241264,-500.0,8.219e-05,2]
[420638243,1776394241275,-500.0,8.219e-05,2]
[420638244,1776394241287,-500.0,8.219e-05,2]
[420638245,1776394241296,-1282.42,8.219e-05,2]
[420638246,1776394241306,-585.81102274,8.219e-05,2]
[420638247,1776394241315,-500.0,8.219e-05,2]
[420638248,1776394241325,-500.0,8.219e-05,2]
[420638249,1776394241334,-500.0,8.219e-05,2]
[420638250,1776394241343,-500.0,8.219e-05,2]